fUST/lending_fUST_20250408
["ID","MTS","AMOUNT","RATE_DAILY","PERIOD"]
[357426275,1744063874735,-500.0,0.00022465,2]
[357426276,1744063874744,-500.0,0.00022465,2]
[357426277,1744063874754,-622.95722698,0.00022465,2]
[357426278,1744063874763,-683.72,0.00022465,2]
[357426279,1744063874773,-927.22,0.00022465,2]
[357426280,1744063874782,-500.0,0.00022465,2]
[357426281,1744063874793,-500.0,0.00022465,2]
[357426282,1744063874802,-2388.74,0.00022465,2]
[357426283,1744063874812,-500.0,0.00022465,2]
[357426284,1744063874822,-500.0,0.00022465,2]
[357426285,1744063874831,-500.0,0.00022465,2]
[357426286,1744063874841,-588.03987349,0.00022465,2]
[357426287,1744063874851,-500.0,0.00022465,2]
[357426288,1744063874861,-500.0,0.00022465,2]
[357426289,1744063874871,-500.0,0.00022465,2]
[357426290,1744063874882,-500.0,0.00022465,2]
[357426291,1744063874891,-500.0,0.00022465,2]
[357426292,1744063874902,-500.0,0.00022465,2]
[357426293,1744063874911,-5151.25,0.00022465,2]
[357426294,1744063874921,-326.33193586,0.00022465,2]
[357426295,1744063874931,-500.0,0.00022465,2]
[357426296,1744063874941,-500.0,0.00022465,2]
[357426297,1744063874951,-500.0,0.00022465,2]
[357426298,1744063874961,-500.0,0.00022465,2]
[357426299,1744063874971,-500.0,0.00022465,2]
[357426300,1744063874981,-500.0,0.00022465,2]
[357426301,1744063874991,-500.0,0.00022465,2]
[357426302,1744063875001,-500.0,0.00022465,2]
[357426303,1744063875011,-297.04238865,0.00022465,2]
[357426304,1744063875021,-500.0,0.00022465,2]
[357426305,1744063875031,-500.0,0.00022465,2]
[357426306,1744063875041,-641.09,0.00022465,2]
[357426307,1744063875051,-500.0,0.00022465,2]
[357426308,1744063875061,-500.0,0.00022465,2]
[357426309,1744063875071,-500.0,0.00022465,2]
[357426310,1744063875082,-500.0,0.00022465,2]
[357426311,1744063875091,-500.0,0.00022465,2]
[357426312,1744063875101,-500.0,0.00022465,2]
[357426313,1744063875111,-1515.42,0.00022465,2]
[357426314,1744063875120,-500.0,0.00022465,2]
[357426315,1744063875130,-500.0,0.00022465,2]
[357426316,1744063875140,-500.0,0.00022465,2]
[357426317,1744063875150,-1223.9,0.00022465,2]
[357426318,1744063875160,-972.05,0.00022465,2]
[357426319,1744063875170,-500.0,0.00022465,2]
[357426320,1744063875180,-500.0,0.00022465,2]
[357426321,1744063875190,-1029.9,0.00022465,2]
[357426322,1744063875199,-500.0,0.00022465,2]
[357426323,1744063875209,-710.69,0.00022465,2]
[357426324,1744063875222,-500.0,0.00022465,2]
[357426325,1744063875233,-514.93,0.00022465,2]
[357426326,1744063875243,-500.0,0.00022465,2]
[357426327,1744063875253,-500.0,0.00022465,2]
[357426328,1744063875263,-500.0,0.00022465,2]
[357426329,1744063875273,-500.0,0.00022465,2]
[357426330,1744063875283,-500.0,0.00022465,2]
[357426331,1744063875294,-500.0,0.00022465,2]
[357426332,1744063875304,-500.0,0.00022465,2]
[357426333,1744063875314,-500.0,0.00022465,2]
[357426334,1744063875324,-500.0,0.00022465,2]
[357426335,1744063875334,-500.0,0.00022465,2]
[357426336,1744063875343,-500.0,0.00022465,2]
[357426337,1744063875354,-500.0,0.00022465,2]
[357426338,1744063875364,-165.38432846,0.00022465,2]
[357426339,1744063875374,-500.0,0.00022465,2]
[357426340,1744063875383,-500.0,0.00022465,2]
[357426341,1744063875393,-500.0,0.00022465,2]
[357426342,1744063875402,-519.12618952,0.00022465,2]
[357426343,1744063875413,-500.0,0.00022465,2]
[357426344,1744063875423,-630.65,0.00022465,2]
[357426345,1744063875436,-500.0,0.00022465,2]
[357426346,1744063875446,-500.0,0.00022465,2]
[357426347,1744063875456,-500.0,0.00022465,2]
[357426348,1744063875466,-500.0,0.00022465,2]
[357426349,1744063875476,-1716.22,0.00022465,2]
[357426350,1744063875486,-500.0,0.00022465,2]
[357426351,1744063875496,-601.19,0.00022465,2]
[357426352,1744063875506,-500.0,0.00022465,2]
[357426353,1744063875516,-1677.61,0.00022465,2]
[357426354,1744063875527,-500.0,0.00022465,2]
[357426355,1744063875537,-500.0,0.00022465,2]
[357426356,1744063875547,-526.01,0.00022465,2]
[357426357,1744063875557,-505.213239,0.00022465,2]
[357426358,1744063875567,-500.0,0.00022465,2]
[357426359,1744063875577,-1206.67,0.00022465,2]
[357426360,1744063875587,-500.0,0.00022465,2]
[357426361,1744063875597,-500.0,0.00022465,2]
[357426362,1744063875606,-500.0,0.00022465,2]
[357426363,1744063875617,-500.0,0.00022465,2]
[357426364,1744063875627,-500.0,0.00022465,2]
[357426365,1744063875636,-500.0,0.00022465,2]
[357426366,1744063875646,-500.0,0.00022465,2]
[357426367,1744063875656,-200.0,0.00022465,2]
[357426368,1744063875666,-1866.81,0.00022465,2]
[357426369,1744063875676,-631.76,0.00022465,2]
[357426370,1744063875686,-500.0,0.00022465,2]
[357426371,1744063875695,-500.0,0.00022465,2]
[357426372,1744063875705,-876.5,0.00022465,2]
[357426373,1744063875716,-500.0,0.00022465,2]
[357426374,1744063875726,-500.0,0.00022465,2]
[357426375,1744063875736,-711.58,0.00022465,2]
[357426376,1744063875746,-775.52,0.00022465,2]
[357426377,1744063875755,-500.0,0.00022465,2]
[357426378,1744063875765,-731.46,0.00022465,2]
[357426379,1744063875776,-500.0,0.00022465,2]
[357426380,1744063875785,-500.0,0.00022465,2]
[357426381,1744063875795,-500.0,0.00022465,2]
[357426382,1744063875804,-500.0,0.00022465,2]
[357426383,1744063875814,-500.0,0.00022465,2]
[357426384,1744063875824,-500.0,0.00022465,2]
[357426385,1744063875833,-500.0,0.00022465,2]
[357426386,1744063875843,-500.0,0.00022465,2]
[357426387,1744063875853,-500.0,0.00022465,2]
[357426388,1744063875862,-500.0,0.00022465,2]
[357426389,1744063875871,-535.17920167,0.00022465,2]
[357426390,1744063875881,-500.0,0.00022465,2]
[357426391,1744063875891,-578.19,0.00022465,2]
[357426392,1744063875901,-1407.84,0.00022465,2]
[357426393,1744063875910,-500.0,0.00022465,2]
[357426394,1744063875920,-500.0,0.00022465,2]
[357426395,1744063875929,-500.0,0.00022465,2]
[357426396,1744063875939,-500.0,0.00022465,2]
[357426397,1744063875949,-500.0,0.00022465,2]
[357426398,1744063875958,-500.0,0.00022465,2]
[357426399,1744063875968,-500.0,0.00022465,2]
[357426400,1744063875978,-500.0,0.00022465,2]
[357426401,1744063875987,-500.0,0.00022465,2]
[357426402,1744063875997,-501.23381039,0.00022465,2]
[357426403,1744063876006,-500.0,0.00022465,2]
[357426404,1744063876016,-500.0,0.00022465,2]
[357426405,1744063876026,-673.31,0.00022465,2]
[357426406,1744063876036,-500.0,0.00022465,2]
[357426407,1744063876046,-500.0,0.00022465,2]
[357426408,1744063876056,-518.2504023,0.00022465,2]
[357426409,1744063876065,-500.0,0.00022465,2]
[357426410,1744063876079,-860.82,0.00022465,2]
[357426411,1744063876088,-503.19015054,0.00022465,2]
[357426412,1744063876098,-500.0,0.00022465,2]
[357426413,1744063876108,-584.63,0.00022465,2]
[357426414,1744063876117,-500.0,0.00022465,2]
[357426415,1744063876127,-500.0,0.00022465,2]
[357426416,1744063876137,-500.0,0.00022465,2]
[357426417,1744063876146,-500.0,0.00022465,2]
[357426418,1744063876155,-500.0,0.00022465,2]
[357426419,1744063876165,-875.61,0.00022465,2]
[357426420,1744063876175,-500.0,0.00022465,2]
[357426421,1744063876185,-268.33603289,0.00022465,2]
[357426422,1744063876195,-500.0,0.00022465,2]
[357426423,1744063876204,-501.31,0.00022465,2]
[357426424,1744063876214,-500.0,0.00022465,2]
[357426425,1744063876226,-500.0,0.00022465,2]
[357426426,1744063876235,-500.0,0.00022465,2]
[357426427,1744063876245,-380.6031143,0.00022465,2]
[357426428,1744063876254,-1137.86,0.00022465,2]
[357426429,1744063876266,-500.0,0.00022465,2]
[357426430,1744063876276,-724.96,0.00022465,2]
[357426431,1744063876286,-500.0,0.00022465,2]
[357426432,1744063876295,-500.0,0.00022465,2]
[357426433,1744063876305,-560.96,0.00022465,2]
[357426434,1744063876316,-500.0,0.00022465,2]
[357426435,1744063876325,-500.0,0.00022465,2]
[357426436,1744063876335,-500.0,0.00022465,2]
[357426437,1744063876344,-500.0,0.00022465,2]
[357426438,1744063876354,-1851.71,0.00022465,2]
[357426439,1744063876364,-500.0,0.00022465,2]
[357426440,1744063876373,-500.0,0.00022465,2]
[357426441,1744063876383,-500.0,0.00022465,2]
[357426442,1744063876393,-500.0,0.00022465,2]
[357426443,1744063876402,-500.0,0.00022465,2]
[357426444,1744063876412,-500.0,0.00022465,2]
[357426445,1744063876421,-500.0,0.00022465,2]
[357426446,1744063876431,-368.16067863,0.00022465,2]
[357426447,1744063876441,-500.0,0.00022465,2]
[357426448,1744063876450,-514.70156185,0.00022465,2]
[357426449,1744063876460,-280.34696185,0.00022465,2]
[357426450,1744063876470,-500.0,0.00022465,2]
[357426451,1744063876481,-500.0,0.00022465,2]
[357426452,1744063876492,-616.93,0.00022465,2]
[357426453,1744063876502,-992.11,0.00022465,2]
[357426454,1744063876511,-1076.39,0.00022465,2]
[357426455,1744063876521,-500.0,0.00022465,2]
[357426456,1744063876532,-500.0,0.00022465,2]
[357426457,1744063876542,-500.0,0.00022465,2]
[357426458,1744063876552,-500.0,0.00022465,2]
[357426459,1744063876563,-500.0,0.00022465,2]
[357426460,1744063876706,-500.0,0.00022465,2]
[357426461,1744063876716,-500.0,0.00022465,2]
[357426462,1744063876726,-2026.48,0.00022465,2]
[357426463,1744063876736,-500.0,0.00022465,2]
[357426464,1744063876746,-554.07558245,0.00022465,2]
[357426465,1744063876757,-500.0,0.00022465,2]
[357426466,1744063876767,-500.0,0.00022465,2]
[357426467,1744063876777,-953.83,0.00022465,2]
[357426468,1744063876786,-500.0,0.00022465,2]
[357426469,1744063876796,-500.0,0.00022465,2]
[357426470,1744063876807,-500.0,0.00022465,2]
[357426471,1744063876816,-2969.41,0.00022465,2]
[357426472,1744063876825,-500.0,0.00022465,2]
[357426473,1744063876835,-1097.58,0.00022465,2]
[357426474,1744063876844,-519.65,0.00022465,2]
[357426475,1744063876854,-500.0,0.00022465,2]
[357426476,1744063876863,-2444.99,0.00022465,2]
[357426477,1744063876873,-500.0,0.00022465,2]
[357426478,1744063876883,-500.0,0.00022465,2]
[357426479,1744063876894,-527.8779858,0.00022465,2]
[357426480,1744063876904,-325.77946684,0.00022465,2]
[357426481,1744063876914,-500.0,0.00022465,2]
[357426482,1744063876923,-976.7,0.00022465,2]
[357426483,1744063876933,-500.0,0.00022465,2]
[357426484,1744063876942,-500.0,0.00022465,2]
[357426485,1744063876952,-1051.44,0.00022465,2]
[357426486,1744063876962,-500.0,0.00022465,2]
[357426487,1744063876972,-500.0,0.00022465,2]
[357426488,1744063876982,-500.0,0.00022465,2]
[357426489,1744063876992,-540.47,0.00022465,2]
[357426490,1744063877002,-543.21,0.00022465,2]
[357426491,1744063877011,-668.11,0.00022465,2]
[357426492,1744063877021,-853.08,0.00022465,2]
[357426493,1744063877031,-1262.71,0.00022465,2]
[357426494,1744063877041,-500.0,0.00022465,2]
[357426495,1744063877050,-501.42832562,0.00022465,2]
[357426496,1744063877060,-500.0,0.00022465,2]
[357426497,1744063877069,-500.0,0.00022465,2]
[357426498,1744063877079,-500.0,0.00022465,2]
[357426499,1744063877089,-500.0,0.00022465,2]
[357426500,1744063877099,-499.22989843,0.00022465,2]
[357426501,1744063877108,-500.0,0.00022465,2]
[357426502,1744063877118,-500.0,0.00022465,2]
[357426503,1744063877128,-500.0,0.00022465,2]
[357426504,1744063877138,-2569.27,0.00022465,2]
[357426505,1744063877148,-500.0,0.00022465,2]
[357426506,1744063877158,-1733.23,0.00022465,2]
[357426507,1744063877169,-893.36,0.00022465,2]
[357426508,1744063877179,-2016.49,0.00022465,2]
[357426509,1744063877189,-1152.06,0.00022465,2]
[357426510,1744063877200,-500.0,0.00022465,2]
[357426511,1744063877209,-500.0,0.00022465,2]
[357426512,1744063877222,-500.0,0.00022465,2]
[357426513,1744063877232,-500.0,0.00022465,2]
[357426514,1744063877242,-500.0,0.00022465,2]
[357426515,1744063877252,-552.64,0.00022465,2]
[357426516,1744063877262,-18581.5,0.00022465,2]
[357426517,1744063877273,-500.0,0.00022465,2]
[357426518,1744063877283,-500.0,0.00022465,2]
[357426519,1744063877295,-500.0,0.00022465,2]
[357426520,1744063877304,-500.0,0.00022465,2]
[357426521,1744063877314,-2267.89,0.00022465,2]
[357426522,1744063877323,-4269.8,0.00022465,2]
[357426523,1744063877333,-500.0,0.00022465,2]
[357426524,1744063877342,-500.0,0.00022465,2]
[357426525,1744063877352,-500.0,0.00022465,2]
[357426526,1744063877361,-1821.78,0.00022465,2]
[357426527,1744063877372,-500.0,0.00022465,2]
[357426528,1744063877381,-703.14,0.00022465,2]
[357426529,1744063877391,-500.0,0.00022465,2]
[357426530,1744063877401,-998.23,0.00022465,2]
[357426531,1744063877410,-2845.59,0.00022465,2]
[357426532,1744063877420,-544.04,0.00022465,2]
[357426533,1744063877429,-500.0,0.00022465,2]
[357426534,1744063877439,-500.0,0.00022465,2]
[357426535,1744063877449,-3675.16,0.00022465,2]
[357426536,1744063877459,-925.05,0.00022465,2]
[357426537,1744063877468,-500.0,0.00022465,2]
[357426538,1744063877478,-500.0,0.00022465,2]
[357426539,1744063877488,-500.0,0.00022465,2]
[357426540,1744063877497,-500.0,0.00022465,2]
[357426541,1744063877507,-500.0,0.00022465,2]
[357426542,1744063877516,-636.50317024,0.00022465,2]
[357426543,1744063877526,-500.0,0.00022465,2]
[357426544,1744063877535,-500.0,0.00022465,2]
[357426545,1744063877546,-500.0,0.00022465,2]
[357426546,1744063877556,-500.0,0.00022465,2]
[357426547,1744063877566,-500.0,0.00022465,2]
[357426548,1744063877575,-500.0,0.00022465,2]
[357426549,1744063877585,-500.0,0.00022465,2]
[357426550,1744063877594,-1424.89,0.00022465,2]
[357426551,1744063877603,-500.0,0.00022465,2]
[357426552,1744063877612,-500.0,0.00022465,2]
[357426553,1744063877622,-500.0,0.00022465,2]
[357426554,1744063877631,-500.0,0.00022465,2]
[357426555,1744063877641,-500.0,0.00022465,2]
[357426556,1744063877650,-665.06,0.00022465,2]
[357426557,1744063877660,-500.0,0.00022465,2]
[357426558,1744063877669,-500.0,0.00022465,2]
[357426559,1744063877679,-500.0,0.00022465,2]
[357426560,1744063877688,-266.50037197,0.00022465,2]
[357426561,1744063877698,-500.0,0.00022465,2]
[357426562,1744063877707,-500.0,0.00022465,2]
[357426563,1744063877718,-545.95,0.00022465,2]
[357426564,1744063877728,-500.0,0.00022465,2]
[357426565,1744063877737,-542.93929516,0.00022465,2]
[357426566,1744063877748,-500.0,0.00022465,2]
[357426567,1744063877758,-500.0,0.00022465,2]
[357426568,1744063877767,-500.0,0.00022465,2]
[357426569,1744063877777,-165.45566777,0.00022465,2]
[357426570,1744063877786,-500.0,0.00022465,2]
[357426571,1744063877797,-500.0,0.00022465,2]
[357426572,1744063877806,-500.0,0.00022465,2]
[357426573,1744063877816,-500.0,0.00022465,2]
[357426574,1744063877825,-2391.05,0.00022465,2]
[357426575,1744063877835,-500.0,0.00022465,2]
[357426576,1744063877844,-1497.52,0.00022465,2]
[357426577,1744063877853,-174.68564581,0.00022465,2]
[357426578,1744063877863,-500.0,0.00022465,2]
[357426579,1744063877873,-1082.74,0.00022465,2]
[357426580,1744063877882,-500.0,0.00022465,2]
[357426581,1744063877892,-651.9,0.00022465,2]
[357426582,1744063877901,-500.0,0.00022465,2]
[357426583,1744063877911,-2766.76,0.00022465,2]
[357426584,1744063877920,-500.0,0.00022465,2]
[357426585,1744063877930,-895.7,0.00022465,2]
[357426586,1744063877939,-572.77,0.00022465,2]
[357426587,1744063877948,-2482.06,0.00022465,2]
[357426588,1744063877958,-500.0,0.00022465,2]
[357426589,1744063877967,-967.61,0.00022465,2]
[357426590,1744063877977,-500.0,0.00022465,2]
[357426591,1744063877986,-500.0,0.00022465,2]
[357426592,1744063877996,-1151.37,0.00022465,2]
[357426593,1744063878006,-2726.63,0.00022465,2]
[357426594,1744063878018,-646.66,0.00022465,2]
[357426595,1744063878029,-500.0,0.00022465,2]
[357426596,1744063878039,-378.57416852,0.00022465,2]
[357426597,1744063878049,-500.0,0.00022465,2]
[357426598,1744063878059,-6139.74,0.00022465,2]
[357426599,1744063878069,-555.63294281,0.00022465,2]
[357426600,1744063878080,-500.0,0.00022465,2]
[357426601,1744063878090,-500.0,0.00022465,2]
[357426602,1744063878100,-500.0,0.00022465,2]
[357426603,1744063878111,-4219.24,0.00022465,2]
[357426604,1744063878121,-629.38,0.00022465,2]
[357426605,1744063878131,-4760.8,0.00022465,2]
[357426606,1744063878142,-500.0,0.00022465,2]
[357426607,1744063878152,-500.0,0.00022465,2]
[357426608,1744063878162,-4549.61,0.00022465,2]
[357426609,1744063878173,-511.39957081,0.00022465,2]
[357426610,1744063878183,-500.0,0.00022465,2]
[357426611,1744063878193,-500.0,0.00022465,2]
[357426612,1744063878203,-500.0,0.00022465,2]
[357426613,1744063878215,-500.0,0.00022465,2]
[357426614,1744063878228,-500.0,0.00022465,2]
[357426615,1744063878238,-500.0,0.00022465,2]
[357426616,1744063878248,-500.0,0.00022465,2]
[357426617,1744063878259,-724.07,0.00022465,2]
[357426618,1744063878268,-500.0,0.00022465,2]
[357426619,1744063878278,-500.0,0.00022465,2]
[357426620,1744063878288,-500.0,0.00022465,2]
[357426621,1744063878299,-11557.25,0.00022465,2]
[357426622,1744063878309,-500.0,0.00022465,2]
[357426623,1744063878319,-2661.52,0.00022465,2]
[357426624,1744063878329,-500.0,0.00022465,2]
[357426625,1744063878338,-500.0,0.00022465,2]
[357426626,1744063878348,-500.0,0.00022465,2]
[357426627,1744063878358,-500.0,0.00022465,2]
[357426628,1744063878367,-500.0,0.00022465,2]
[357426629,1744063878377,-3398.84,0.00022465,2]
[357426630,1744063878387,-500.0,0.00022465,2]
[357426631,1744063878397,-500.0,0.00022465,2]
[357426632,1744063878406,-500.0,0.00022465,2]
[357426633,1744063878416,-500.0,0.00022465,2]
[357426634,1744063878425,-500.0,0.00022465,2]
[357426635,1744063878434,-502.74550643,0.00022465,2]
[357426636,1744063878445,-618.39,0.00022465,2]
[357426637,1744063878454,-2313.7,0.00022465,2]
[357426638,1744063878464,-500.0,0.00022465,2]
[357426639,1744063878474,-500.0,0.00022465,2]
[357426640,1744063878484,-500.0,0.00022465,2]
[357426641,1744063878493,-500.0,0.00022465,2]
[357426642,1744063878503,-569.1,0.00022465,2]
[357426643,1744063878513,-745.72,0.00022465,2]
[357426644,1744063878522,-500.0,0.00022465,2]
[357426645,1744063878532,-590.97,0.00022465,2]
[357426646,1744063878542,-504.5541689,0.00022465,2]
[357426647,1744063878552,-3056.09,0.00022465,2]
[357426648,1744063878561,-500.0,0.00022465,2]
[357426649,1744063878571,-500.0,0.00022465,2]
[357426650,1744063878581,-503.87994811,0.00022465,2]
[357426651,1744063878590,-500.0,0.00022465,2]
[357426652,1744063878733,-500.0,0.00022465,2]
[357426653,1744063878743,-157.63,0.00022465,2]
[357426654,1744063878752,-3478.82,0.00022465,2]
[357426655,1744063878762,-500.0,0.00022465,2]
[357426656,1744063878772,-500.0,0.00022465,2]
[357426657,1744063878781,-500.0,0.00022465,2]
[357426658,1744063878791,-500.0,0.00022465,2]
[357426659,1744063878801,-819.56,0.00022465,2]
[357426660,1744063878810,-500.0,0.00022465,2]
[357426661,1744063878820,-1068.57,0.00022465,2]
[357426662,1744063878830,-500.0,0.00022465,2]
[357426663,1744063878840,-500.0,0.00022465,2]
[357426664,1744063878850,-500.0,0.00022465,2]
[357426665,1744063878865,-621.56,0.00022465,2]
[357426666,1744063878875,-3744.49,0.00022465,2]
[357426667,1744063878884,-500.0,0.00022465,2]
[357426668,1744063878894,-500.0,0.00022465,2]
[357426669,1744063878905,-3303.4,0.00022465,2]
[357426670,1744063878914,-872.78,0.00022465,2]
[357426671,1744063878925,-500.0,0.00022465,2]
[357426672,1744063878934,-500.0,0.00022465,2]
[357426673,1744063878945,-500.0,0.00022465,2]
[357426674,1744063878955,-500.0,0.00022465,2]
[357426675,1744063878964,-500.0,0.00022465,2]
[357426676,1744063878974,-533.61160234,0.00022465,2]
[357426677,1744063878983,-500.0,0.00022465,2]
[357426678,1744063878993,-6566.66,0.00022465,2]
[357426679,1744063879003,-591.38,0.00022465,2]
[357426680,1744063879012,-500.0,0.00022465,2]
[357426681,1744063879023,-3728.64,0.00022465,2]
[357426682,1744063879032,-4428.79,0.00022465,2]
[357426683,1744063879042,-500.0,0.00022465,2]
[357426684,1744063879052,-500.0,0.00022465,2]
[357426685,1744063879062,-500.0,0.00022465,2]
[357426686,1744063879071,-500.0,0.00022465,2]
[357426687,1744063879081,-500.0,0.00022465,2]
[357426688,1744063879091,-615.78,0.00022465,2]
[357426689,1744063879101,-1390.87,0.00022465,2]
[357426690,1744063879111,-500.0,0.00022465,2]
[357426691,1744063879121,-500.0,0.00022465,2]
[357426692,1744063879131,-890.23,0.00022465,2]
[357426693,1744063879141,-2219.7,0.00022465,2]
[357426694,1744063879151,-500.0,0.00022465,2]
[357426695,1744063879161,-500.0,0.00022465,2]
[357426696,1744063879171,-2090.85,0.00022465,2]
[357426697,1744063879182,-466.65148207,0.00022465,2]
[357426698,1744063879192,-500.0,0.00022465,2]
[357426699,1744063879202,-711.92,0.00022465,2]
[357426700,1744063879211,-500.0,0.00022465,2]
[357426701,1744063879226,-532.36,0.00022465,2]
[357426702,1744063879236,-1187.74,0.00022465,2]
[357426703,1744063879247,-500.0,0.00022465,2]
[357426704,1744063879257,-500.0,0.00022465,2]
[357426705,1744063879268,-500.0,0.00022465,2]
[357426706,1744063879278,-500.0,0.00022465,2]
[357426707,1744063879287,-500.0,0.00022465,2]
[357426708,1744063879299,-1604.89,0.00022465,2]
[357426709,1744063879309,-500.0,0.00022465,2]
[357426710,1744063879319,-531.62,0.00022465,2]
[357426711,1744063879328,-912.89,0.00022465,2]
[357426712,1744063879338,-500.0,0.00022465,2]
[357426713,1744063879348,-500.0,0.00022465,2]
[357426714,1744063879358,-645.68,0.00022465,2]
[357426715,1744063879368,-500.0,0.00022465,2]
[357426716,1744063879378,-500.0,0.00022465,2]
[357426717,1744063879388,-500.0,0.00022465,2]
[357426718,1744063879399,-500.0,0.00022465,2]
[357426719,1744063879409,-1967.09,0.00022465,2]
[357426720,1744063879419,-1296.77,0.00022465,2]
[357426721,1744063879430,-932.59,0.00022465,2]
[357426722,1744063879439,-500.0,0.00022465,2]
[357426723,1744063879451,-500.0,0.00022465,2]
[357426724,1744063879461,-500.0,0.00022465,2]
[357426725,1744063879470,-2553.91,0.00022465,2]
[357426726,1744063879480,-883.78,0.00022465,2]
[357426727,1744063879490,-500.0,0.00022465,2]
[357426728,1744063879499,-1780.77,0.00022465,2]
[357426729,1744063879510,-1311.59,0.00022465,2]
[357426730,1744063879520,-601.41,0.00022465,2]
[357426731,1744063879529,-500.0,0.00022465,2]
[357426732,1744063879539,-2372.83,0.00022465,2]
[357426733,1744063879549,-630.97083906,0.00022465,2]
[357426734,1744063879559,-882.05,0.00022465,2]
[357426735,1744063879570,-500.0,0.00022465,2]
[357426736,1744063879579,-2990.05,0.00022465,2]
[357426737,1744063879589,-500.0,0.00022465,2]
[357426738,1744063879599,-804.44,0.00022465,2]
[357426739,1744063879609,-778.69,0.00022465,2]
[357426740,1744063879618,-500.0,0.00022465,2]
[357426741,1744063879628,-500.0,0.00022465,2]
[357426742,1744063879637,-500.0,0.00022465,2]
[357426743,1744063879648,-500.0,0.00022465,2]
[357426744,1744063879658,-1614.29,0.00022465,2]
[357426745,1744063879669,-534.61,0.00022465,2]
[357426746,1744063879679,-537.59,0.00022465,2]
[357426747,1744063879690,-530.39105613,0.00022465,2]
[357426748,1744063879700,-1541.32,0.00022465,2]
[357426749,1744063879711,-500.0,0.00022465,2]
[357426750,1744063879721,-500.0,0.00022465,2]
[357426751,1744063879730,-500.0,0.00022465,2]
[357426752,1744063879741,-500.0,0.00022465,2]
[357426753,1744063879750,-500.0,0.00022465,2]
[357426754,1744063879760,-3033.88,0.00022465,2]
[357426755,1744063879770,-500.0,0.00022465,2]
[357426756,1744063879780,-500.0,0.00022465,2]
[357426757,1744063879789,-500.0,0.00022465,2]
[357426758,1744063879799,-500.0,0.00022465,2]
[357426759,1744063879809,-500.0,0.00022465,2]
[357426760,1744063879818,-4260.02,0.00022465,2]
[357426761,1744063879828,-549.68,0.00022465,2]
[357426762,1744063879838,-500.0,0.00022465,2]
[357426763,1744063879847,-500.0,0.00022465,2]
[357426764,1744063879857,-5000.0,0.00022733,2]
[357426765,1744063879866,-5000.0,0.00022738,2]
[357426766,1744063879876,-1440.57960921,0.00022738,2]
[357426767,1744063879886,-501.5745025,0.00022739,2]
[357426768,1744063879895,-518.02801591,0.00022739,2]
[357426769,1744063879904,-503.2589892,0.00022739,2]
[357426770,1744063879914,-500.0,0.00022739,2]
[357426771,1744063879923,-590.28499554,0.00022739,2]
[357426772,1744063879933,-500.0,0.00022739,2]
[357426773,1744063879942,-500.0,0.00022739,2]
[357426774,1744063879951,-500.0,0.00022739,2]